Cogmind - Beta 10.2 @@@ ROGUE MODE // 2021.06.06 @ 08:49:45 Player: strategineer Result: Destroyed by Y-45 Defender with Beam Rifle Performance ------------- Evolutions (1) 500 Regions Visited (2) 400 Robots Destroyed (29) 145 Value Destroyed (585) 585 Prototype IDs (4) 80 Alien Tech Used (0) 0 Bonus (200) 200 TOTAL SCORE: 1910 Bonus ------- Pacifist 200 Cogmind --------- Core Integrity 0/400 Matter 300/300 Energy 201/250 System Corruption 7% Temperature Cool (46) Movement Treading (160) Location -9/Materials Parts ------- > --- POWER (1) -------- Ion Engine > --- PROPULSION (2) --- Light Treads Light Treads > --- UTILITY (4) ------ Heat Sink Small Storage Unit Sensor Array Signal Interpreter > --- WEAPON (2) ------- Improved EM Shotgun Advanced Beam Cannon > --- INVENTORY (6) ---- Light Treads Light Treads Medium Matter Pod (100) Heavy Assault Rifle Heavy Assault Rifle Shotgun Peak State ------------ > --- POWER ------------ Ion Engine > --- PROPULSION ------- Light Treads Light Treads > --- UTILITY ---------- Heat Sink Small Storage Unit Sensor Array Terrain Scanner > --- WEAPON ----------- Improved EM Shotgun Advanced Beam Cannon > --- INVENTORY -------- Light Treads Light Treads Medium Matter Pod Heavy Assault Rifle Heavy Assault Rifle Shotgun [Rating: 13] Favorites ----------- Power Ion Engine Engine Ion Engine Propulsion Light Treads Treads Light Treads Leg Aluminum Leg Utility Small Storage Unit Device Heat Sink Storage Small Storage Unit Processor Signal Interpreter Weapon Assault Rifle Energy Gun Particle Gun Energy Cannon Advanced Beam Cannon Ballistic Gun Assault Rifle Ballistic Cannon Light Cannon Build | -11 -10 -9 ------- Run | Scr Mat Mat Slots Evolved 2 | . . 2 Power . | . . . Propulsion . | . . . Utility 2 | . . 2 Weapon . | . . . Parts Attached 33 | . 4 29 Power 4 | . 1 3 Engine 4 | . 1 3 Core . | . . . Reactor . | . . . Propulsion 13 | . 2 11 Treads 10 | . 2 8 Leg 3 | . . 3 Wheel . | . . . Hover . | . . . Flight . | . . . Utility 5 | . 1 4 Device 3 | . . 3 Storage 1 | . 1 . Processor 1 | . . 1 Hackware . | . . . Protection . | . . . Artifact . | . . . Weapon 11 | . . 11 Energy Gun 3 | . . 3 Energy Cannon 1 | . . 1 Ballistic Gun 6 | . . 6 Ballistic Cannon 1 | . . 1 Launcher . | . . . Special Weapon . | . . . Impact Weapon . | . . . Slashing Weapon . | . . . Piercing Weapon . | . . . Special Melee Weapon . | . . . Unidentified Prototypes 2 | . . 2 Parts Lost 9 | . . 9 Power 1 | . . 1 Propulsion 2 | . . 2 Utility 1 | . . 1 Weapon 5 | . . 5 Highest Loss Streak 8 | . . 8 Average Slot Usage (%) 84 | . 92 82 Engine 11 | . 14 10 Treads 15 | . 7 16 Leg 7 | . 21 5 Device 12 | . . 14 Storage 14 | . 21 13 Energy Gun 5 | . . 6 Energy Cannon 1 | . . 2 Ballistic Gun 14 | . 28 12 Naked Turns . | . . . Heaviest Build 19 | 11 14 19 Greatest Support 40 | 20 40 40 Greatest Overweight (x) 3 | . . 3 Average Overweight (x) . | . . . Largest Inventory Capacity 6 | . 6 6 Average Capacity 6 | . 6 6 Most Carried 6 | . 6 6 Average Carried 4 | . 5 4 Final Capacity 6 | 6 6 6 Final Carried 6 | 6 5 6 Class Distribution -------------------- 58% | Scavenger-Mutant 41% | Mutant Dominant Class ---------------- Mutant | -10/Materials Scavenger-Mutant | -9/Materials Resources | -11 -10 -9 ----------- Run | Scr Mat Mat Matter Collected 930 | 200 . 730 Remotely . | . . . Salvage Created 847 | . . 847 Parts 46 | . . 46 Haulers Intercepted 1 | . . 1 Recyclers Shooed . | . . . Parts Field Recycled . | . . . Retrieved Matter . | . . . Parts Self-Destructed . | . . . Prevented . | . . . Kills | -11 -10 -9 ------- Run | Scr Mat Mat Combat Hostiles Destroyed 23 | . . 23 Guns 21 | . . 21 Cannons 2 | . . 2 Classes Destroyed 8 | . . 8 Worker 2 | . . 2 Builder 2 | . . 2 Hauler 1 | . . 1 Watcher 1 | . . 1 Swarmer 11 | . . 11 Grunt 9 | . . 9 Brawler 1 | . . 1 Sentry 2 | . . 2 Best Kill Streak 6 | . . 6 Combat Bots Only 5 | . . 5 Max Kills in Single Turn 2 | . . 2 Gunslinging 1 | . . 1 Exploded . | . . . Melee . | . . . Uniques/NPCs Destroyed . | . . . Combat | -11 -10 -9 -------- Run | Scr Mat Mat Damage Taken 2064 | . . 2064 Core 400 | . . 400 Absorbed by Shields . | . . . Core Remaining (%) 100 | 100 100 . Volleys Fired 72 | . . 72 Largest 2 | . . 2 Hottest 113 | . . 113 Shots Fired 140 | . . 140 Gun 120 | . . 120 Cannon 20 | . . 20 Launcher . | . . . Special . | . . . Kinetic 103 | . . 103 Thermal 27 | . . 27 Explosive . | . . . Electromagnetic 10 | . . 10 Robot Hit Streak 14 | . . 14 Robot Miss Streak 4 | . . 4 Penetration Max . | . . . Secondary Targets 3 | . . 3 Max Gunslinging Chain 1 | . . 1 Shots Hit Robots 84 | . . 84 Core Hits 45 | . . 45 Critical Hits 3 | . . 3 Critical Kills 3 | . . 3 Critical Parts Destroyed . | . . . Melee Attacks . | . . . Impact . | . . . Slashing . | . . . Piercing . | . . . Sneak Attacks . | . . . Combat Hostiles . | . . . Follow-up Attacks . | . . . Damage Inflicted 1215 | . . 1215 Guns 1019 | . . 1019 Cannons 196 | . . 196 Explosions . | . . . Melee . | . . . Ramming . | . . . Kinetic 786 | . . 786 Thermal 272 | . . 272 Explosive . | . . . Electromagnetic 157 | . . 157 Impact . | . . . Slashing . | . . . Piercing . | . . . Highest Corruption 7 | . . 7 Average Corruption 6 | . . 6 Corruption Purged . | . . . Effects 31 | . . 31 Message Errors 7 | . . 7 Matter Fused 4 | . . 4 Heat Flow Errors 2 | . . 2 Energy Discharges 2 | . . 2 Data Loss (minor) 1 | . . 1 Data Loss (major) 1 | . . 1 Misfires 1 | . . 1 Targeting Errors 12 | . . 12 Weapon Failures 1 | . . 1 Overload Shots . | . . . Overflow Damage . | . . . Projectiles . | . . . Explosions . | . . . Melee . | . . . Knockbacks 2 | . . 2 Impact . | . . . Kinetic 2 | . . 2 Secondary . | . . . Self-Inflicted Damage . | . . . Shots . | . . . Rammed . | . . . Targets Rammed . | . . . Kicked . | . . . Crushed . | . . . Highest Temperature 217 | . . 217 Average Temperature 32 | . . 32 Received Heat Transfer 342 | . . 342 Siege Activations . | . . . Robots Corrupted . | . . . Combat Hostiles . | . . . Parts Fried . | . . . Impact Corruptions . | . . . Robots Melted . | . . . Combat Hostiles . | . . . Parts Melted 1 | . . 1 Heat Transferred 592 | . . 592 Parts Sabotaged . | . . . Parts Stolen . | . . . Parts Stripped . | . . . Power Chain Reactions . | . . . Missiles Intercepted . | . . . Alert | -11 -10 -9 ------- Run | Scr Mat Mat Peak Influence 337 | . 9 337 Initial 3 | . . 3 Average 143 | . 8 165 Maximum Alert Level 1 | . . 1 Low Security (%) 69 | . 100 64 Level 1 30 | . . 35 Level 2 . | . . . Level 3 . | . . . Level 4 . | . . . Level 5 . | . . . High Security . | . . . Max Security . | . . . Squads Dispatched 3 | . . 3 Investigation . | . . . Extermination . | . . . Reinforcement 3 | . . 3 Assault . | . . . Garrison . | . . . Intercept . | . . . Construction Impeded 1 | . . 1 Haulers Reinforced . | . . . Stealth | -11 -10 -9 --------- Run | Scr Mat Mat Distress Signals 1 | . . 1 Communications Jammed . | . . . Distress Signals . | . . . Times Spotted 29 | . . 29 Peak Tracking Total 5 | . 2 5 Tactical Retreats 1 | . . 1 Traps | -11 -10 -9 ------- Run | Scr Mat Mat Traps Triggered . | . . . Indirectly . | . . . Trap Hack Attempts . | . . . Triggered . | . . . Disarmed . | . . . Reprogrammed . | . . . Reused . | . . . Traps Extracted . | . . . Installed . | . . . Triggered . | . . . Machines | -11 -10 -9 ---------- Run | Scr Mat Mat Machines Disabled . | . . . Max in Single Turn . | . . . Machines Sabotaged . | . . . Garrisons Compromised . | . . . Overloaded Fab Kills . | . . . Fab Network Shutdowns . | . . . Hacking | -11 -10 -9 --------- Run | Scr Mat Mat Machines Accessed 4 | . 2 2 Terminals 3 | . 1 2 Fabricators . | . . . Repair Stations . | . . . Recycling Units 1 | . 1 . Scanalyzers . | . . . Garrison Access . | . . . Total Hacks 10 | . 6 4 Successful 5 | . 3 2 Failed 5 | . 3 2 Catastrophic 2 | . 1 1 Database Lockouts . | . . . Manual 3 | . 2 1 Terminals 7 | . 3 4 Fabricators . | . . . Repair Stations . | . . . Recycling Units 3 | . 3 . Scanalyzers . | . . . Garrison Access . | . . . Terminal Hacks 4 | . 2 2 Record 1 | . . 1 Prototype ID Bank 1 | . 1 . Level Access Points 1 | . 1 . Zone Layout 1 | . . 1 Fabricator Hacks . | . . . Repair Station Hacks . | . . . Recycling Unit Hacks 1 | . 1 . Report Inventory 1 | . 1 . Scanalyzer . | . . . Garrison Access Hacks . | . . . Unauthorized Hacks . | . . . Terminals . | . . . Fabricators . | . . . Repair Stations . | . . . Recycling Units . | . . . Scanalyzers . | . . . Garrison Access . | . . . Data Cores Recovered . | . . . Used . | . . . Hacking Detections 3 | . 2 1 Full Trace Events . | . . . Feedback Events . | . . . Feedback Blocked . | . . . Robot Schematics Acquired . | . . . Robots Built . | . . . Matter . | . . . Time . | . . . Total Robot Build Rating . | . . . Part Schematics Acquired . | . . . Parts Built . | . . . Matter . | . . . Time . | . . . Total Part Build Rating . | . . . Parts Repaired . | . . . Time . | . . . Parts Recycled . | . . . Recycled Matter . | . . . Retrieved Matter . | . . . Retrieved Components . | . . . Parts Scanalyzed . | . . . Part Schematics Acquired . | . . . Parts Damaged . | . . . Bothacking | -11 -10 -9 ------------ Run | Scr Mat Mat Used RIF Installer . | . . . Robots Hacked . | . . . Non-combat . | . . . Combat . | . . . Robot Hacks Applied . | . . . Relay Couplers Released . | . . . Robots Rewired . | . . . Allies Hacked . | . . . Hacks Repelled . | . . . Allies | -11 -10 -9 -------- Run | Scr Mat Mat Total Allies . | . . . Largest Group . | . . . Highest-Rated Group . | . . . Highest-Rated Ally . | . . . Total Orders . | . . . Ally Attacks . | . . . Total Damage . | . . . Kills . | . . . Allies Corrupted . | . . . Allies Melted . | . . . Intel | -11 -10 -9 ------- Run | Scr Mat Mat Robot Analysis Total . | . . . Derelict Logs Recovered . | . . . Drone Launches . | . . . Drone Recoveries . | . . . Exploration | -11 -10 -9 ------------- Run | Scr Mat Mat Turns Passed 847 | . 121 726 Spaces Moved 375 | 1 88 286 Core 1 | . . 1 Treads 198 | . 12 186 Legs 176 | 1 76 99 Wheels . | . . . Hover . | . . . Flight . | . . . Fastest Speed 120 | 120 120 120 Average Speed 141 | 120 125 146 Slowest Speed 200 | 120 160 200 Overloaded Moves . | . . . Propulsion Burnouts . | . . . Robots Hopped . | . . . Cave-ins Triggered 2 | . . 2 Exploration Rate (%) 18 | 2 24 29 Regions Visited 2 Branch Regions . Pre-discovered Areas . | . . . Known Exits Taken 1 | . 1 . Unknown Exits Taken 1 | 1 . . Scrap Searched . | . . . Spaces Dug . | . . . Terrain Destroyed . | . . . Melee . | . . . Projectile . | . . . AOE . | . . . Terrain Rammed . | . . . Walls Destroyed . | . . . Machines Disabled . | . . . Actions | -11 -10 -9 --------- Run | Scr Mat Mat Total 559 | . 100 459 Wait 41 | . . 41 Move 373 | . 87 286 Hop . | . . . Pick Up 19 | . 4 15 Fast Attach 10 | . 1 9 Attach 7 | . 2 5 Detach . | . . . Swap 16 | . 1 15 Drop 21 | . 5 16 Fire 72 | . . 72 Melee . | . . . Ram . | . . . Kick . | . . . Crush . | . . . Escape Stasis . | . . . Rewire . | . . . Trap . | . . . Miscellaneous . | . . . Route ------- -11/Scrapyard -10/Materials (discovered 3 exits: *Mat x3) -9/Materials History --------- Turn | Location | Event 1 | -11/Scrapyard | Discovered new exit (range 0) 1 | -11/Scrapyard | Entered Materials 13 | -10/Materials | Identified exit to Materials 122 | -10/Materials | Entered another Materials area 122 | -9/Materials | Evolved 2 slots: Utility x2 280 | -9/Materials | Crushed by falling debris 283 | -9/Materials | Crushed by falling debris 283 | -9/Materials | Core integrity fell below 50% 348 | -9/Materials | Build established: Mutant 351 | -9/Materials | Lost 8 parts (1p2n1u4w) 562 | -9/Materials | Core integrity fell below 20% 681 | -9/Materials | Build established: Scavenger-Mutant 848 | -9/Materials | Destroyed by Y-45 Defender with Beam Rifle Last Messages --------------- 00763_ G-34 Mercenary destroyed. 00766_ Acquired 2 matter. 00768_ System corrupted: Imp. EM Shotgun targeting data glitched. 00774_ B-36 Bruiser suffers critical hit. 00774_ B-36 Bruiser destroyed. 00780_ Dropped Aluminum Leg. 00781_ Acquired Lgt. Treads. 00785_ System corrupted: Matter fused (-7). 00785_ Dropped Ion Engine. 00786_ System corrupted: Imp. EM Shotgun targeting data glitched. 00786_ W-16 Scout destroyed. 00792_ Acquired Sensor Array. 00796_ Dropped Terrain Scanner. 00796_ Acquired Signal Interpreter. 00799_ Acquired 37 matter. 00807_ R-06 Scavenger collects Heat Sink. 00812_ R-06 Scavenger collects Ion Engine. 00817_ R-06 Scavenger collects Aluminum Leg. 00839_ System corrupted: Component data lost. 00845_ Atomic Centrifuge disabled. Map ----- +----------------------------------------------------+ | +?????????????????????????? | | #? ???????????????????????? | | #?#????????? ???????????? | | # ##??#???????# ##?????????? | | # #??????#????# !!????????? | | # #??##????#### !???????? | | # #?# ????? ## ????????? | | # ### ? ??? ## ????????? | | ## """ ## ^ ?????????? | | [ ## """ ## ??????????? | | % ## ## #????######? | | = ## """ + #??? #? | | = ## """ ## #?? #? | | ##=###?? """ ## #? ! #? | | ?#%#?#??? ## ##? !! #? | | ##=#########+### # % #? | | ##%] ! # #? | | ?########## % + #? | | ???????#??# # #? | | ????#???#####%## # #? | | ?#?#????# %/## ###########? | | ????????# ## # #?? | | ##??##??# ## # """ #?? | | ????#???# ## # "Y" #?? | | ????#???# ## # " " #?? | | ##??????# ## # @ #?? | | ????#???######### r "" #?? | | ????##??????????# # """ Y #?? | | ?????????"??????# # """ #?? | | ????#????"??????# # #? | | ????????????????# ###########? | | ????????????????# #??????????? | | ????????????????# #??????????? | | ????????????????# #??????????? | | ????????????????# #??????????? | | ???????????????? ???????????? | | ???????????????? ???????????? | | ???????????????? ???????????? | | ??????????????? ???????????? | | ??????????????? ???????????? | | ??????????????? ???????????? | | ????????????????? ???????????? | | ???????????????????????????????? | | ???????????????????????????????? | | ???????????????????????????????? | | ???????????????????????????????? | | ???????????????????????????????? | | ???????????????????????????????? | | ???????????????????????????????? | | ???????????????????????????????? | +----------------------------------------------------+ Best States ------------- Heat Dissipation 38 Energy Generation 10 Energy Capacity 250 Matter Stores 300 Matter Capacity 350 Sight Range 16 Robot Scan Range 10 Terrain Scan Range 14 Terrain Scan Density 10 Evasion (%) 40 Recoil Reduction 2 Item Schematics ----------------- None Robot Schematics ------------------ None Fabricated ------------ Nothing Alien Tech Used ----------------- None Achievements -------------- None Challenges ------------ None Game ------ Seed IonicFluxDerivative Manual? 0 Play Time 00:11:31 Cumulative 13.7 hours Start 2021.06.06 @ 08:34:42 End 2021.06.06 @ 08:49:45 Sessions 1 Manual Loads 0 Difficulty Rogue Special Mode None Game No. 16 Rogue 16 Adventurer 0 Explorer 0 Win Type - Total 0 Types 0/0/0/0/0/0/0/0/0 Lore% 5 Gallery% 25 Achievement% 19 Wizard Run 0 Options --------- ASCII 0 Keyboard 0 Movement Mouse Keybinds 1 Fullscreen 2 Font 24/Smallcaps Map View 76x50 Tactical HUD 1 Map Filters NONE Filters NONE Steam 1 RUN: 0fbe8821-461d-4ed1-b57b-9d347011ae9c